Cogmind - Beta 15 @@@ ROGUE MODE // 2025.10.20 @ 00:26:47 Player: Kappa Result: Self-destructed Performance ------------- Evolutions (3) 1500 Regions Visited (6) 1200 Robots Destroyed (72) 360 Value Destroyed (2614) 2614 Prototype IDs (9) 180 Alien Tech Used (0) 0 Bonus (248) 248 TOTAL SCORE: 6102 Bonus ------- Follower Combat Kills 248 Cogmind --------- Core Integrity 264/700 Matter 208/300 Energy 36/265 System Corruption 8% Temperature Cool (0) Movement Core (550) Ox10 Location -7/Factory Parts ------- > --- POWER (2) -------- Improved Ion Engine > --- PROPULSION (4) --- (None) > --- UTILITY (5) ------ Large Storage Unit System Shield > --- WEAPON (2) ------- Beamcaster > --- INVENTORY (15) --- Improved Terrain Scanner Advanced Terrain Scan Processor Armor Integrity Analyzer Insulated Plating EM Disruption Field Hardlight Generator Plasma Cannon Peak State ------------ > --- POWER ------------ Improved Ion Engine Deuterium Engine > --- PROPULSION ------- Light Treads Medium Treads Medium Treads Medium Treads > --- UTILITY ---------- Improved Heat Sink Large Storage Unit Advanced Targeting Computer Improved Medium Armor Plating Medium Reactive Plating > --- WEAPON ----------- Beamcaster Plasma Cannon > --- INVENTORY -------- Improved Ion Engine Improved Ion Engine Light Treads Light Treads Light Treads Improved Terrain Scanner Advanced Terrain Scan Processor Armor Integrity Analyzer Improved Weapon Shielding Improved Medium Armor Plating EM Disruption Field System Shield Shock Rifle Improved Lightning Gun [Rating: 46] Favorites ----------- Power Improved Ion Engine Engine Improved Ion Engine Power Core Light Nuclear Core Propulsion Light Treads Treads Light Treads Utility Large Storage Unit Device Improved Heat Sink Storage Large Storage Unit Processor Targeting Computer Hackware System Shield Protection Improved Weapon Shielding Weapon Beamcaster Energy Gun Beamcaster Energy Cannon Plasma Cannon Ballistic Gun Light Assault Rifle Launcher Mini Grenade Launcher Special Weapon Mining Laser Build | -11 -10 -10 -9 -9 -8 -7 ------- Run | Yrd Mat Min Mat Sto Mat Fac Slots Evolved 6 | . . . 2 . 2 2 Power 1 | . . . . . 1 . Propulsion 2 | . . . . . 1 1 Utility 3 | . . . 2 . . 1 Weapon . | . . . . . . . Parts Attached 58 | 7 5 4 12 9 12 9 Power 9 | 1 1 . 2 2 3 . Engine 8 | 1 . . 2 2 3 . Core 1 | . 1 . . . . . Reactor . | . . . . . . . Propulsion 16 | 2 . . 4 3 3 4 Treads 16 | 2 . . 4 3 3 4 Leg . | . . . . . . . Wheel . | . . . . . . . Hover . | . . . . . . . Flight . | . . . . . . . Utility 21 | 1 3 1 4 3 5 4 Device 5 | . 1 . 2 1 1 . Storage 2 | 1 1 . . . . . Processor 3 | . . . 1 1 . 1 Hackware 1 | . . . . . . 1 Protection 10 | . 1 1 1 1 4 2 Artifact . | . . . . . . . Weapon 12 | 3 1 3 2 1 1 1 Energy Gun 6 | 1 1 . 2 1 1 . Energy Cannon 1 | . . . . . . 1 Ballistic Gun 2 | 2 . . . . . . Ballistic Cannon . | . . . . . . . Launcher 2 | . . 2 . . . . Special Weapon 1 | . . 1 . . . . Impact Weapon . | . . . . . . . Slashing Weapon . | . . . . . . . Piercing Weapon . | . . . . . . . Special Melee Weapon . | . . . . . . . Unidentified Prototypes 2 | . . . . 2 . . Parts Lost 14 | . . . . . . 14 Power 2 | . . . . . . 2 Propulsion 6 | . . . . . . 6 Utility 5 | . . . . . . 5 Weapon 1 | . . . . . . 1 Highest Loss Streak 14 | . . . . . . 14 To Critical Strikes . | . . . . . . . Average Backups 13 | 1 13 14 13 13 12 14 Power 2 | . 1 1 2 4 2 1 Propulsion 2 | 1 2 2 2 3 3 3 Utility 5 | . 3 4 4 4 5 7 Weapon 3 | . 6 6 3 1 1 1 Tool/Special . | . . . . . . . Unused Backups 25 | . 1 . 9 4 3 8 Power 3 | . 1 . 1 1 . . Propulsion 4 | . . . 4 . . . Utility 13 | . . . 3 1 1 8 Weapon 5 | . . . 1 2 2 . Tool/Special . | . . . . . . . Average Slot Usage (%) 99 | . 98 99 99 99 99 97 Engine 10 | . 4 . 8 10 17 14 Core 3 | . 9 14 2 . . . Treads 25 | . 28 28 22 22 27 28 Device 6 | . 4 . 5 11 9 6 Storage 10 | . 14 14 11 11 9 7 Processor 6 | . . . 11 11 9 6 Protection 12 | . 8 14 16 11 9 15 Energy Gun 14 | . 12 . 17 21 18 8 Energy Cannon 1 | . . . . . . 5 Ballistic Gun 3 | . 15 9 . . . . Launcher 1 | . . 4 3 . . . Special Weapon 1 | . . 12 . . . . Peak Build Rating 46 | 6 13 12 21 28 32 46 Average Rating 24 | 5 11 11 19 24 28 43 On Entrance 15 | . 6 12 12 20 26 29 Naked Turns . | . . . . . . . Heaviest Build 84 | 13 30 31 40 40 65 84 Greatest Support 104 | 40 40 40 40 40 60 104 Greatest Overweight (x) 2 | . . . . . 1 2 Average Overweight (x) . | . . . . . . . Largest Inventory Capacity 15 | 8 15 15 15 15 15 15 Average Capacity 14 | 7 14 15 15 15 15 15 Most Carried 15 | 4 15 15 15 15 15 15 Average Carried 14 | 2 13 14 14 14 13 14 Final Capacity 15 | 8 15 15 15 15 15 15 Final Carried 15 | 4 15 15 15 14 15 7 Class Distribution -------------------- 62% | Mutant 28% | Scavenger-Mutant 9% | Commander-Mutant Dominant Class ---------------- Mutant | -10/Materials Mutant | -10/Mines Scavenger-Mutant | -9/Materials Mutant | -9/Storage Scavenger-Mutant | -8/Materials Mutant | -7/Factory Resources | -11 -10 -10 -9 -9 -8 -7 ----------- Run | Yrd Mat Min Mat Sto Mat Fac Matter Collected 965 | 261 100 31 170 100 150 153 Remotely . | . . . . . . . Salvage Created 2982 | . 445 . 502 702 821 512 Parts 167 | . 26 . 34 47 41 19 Haulers Intercepted 1 | . . . . 1 . . Recyclers Shooed 1 | . 1 . . . . . Parts Field Recycled . | . . . . . . . Retrieved Matter . | . . . . . . . Parts Self-Destructed . | . . . . . . . Prevented . | . . . . . . . Kills | -11 -10 -10 -9 -9 -8 -7 ------- Run | Yrd Mat Min Mat Sto Mat Fac Combat Hostiles Destroyed 58 | . 11 . 10 14 16 7 Guns 48 | . 11 . 10 10 14 3 Cannons 4 | . . . . . . 4 AOE 4 | . . . . 3 1 . Classes Destroyed 13 | . 1 . 2 4 2 4 Worker 1 | . . . . . . 1 Builder 3 | . . . . 1 . 2 Hauler 1 | . . . . 1 . . Recycler 2 | . . . . . 1 1 Mechanic 1 | . . . . 1 . . Operator 2 | . . . . . 2 . Watcher 4 | . . . 1 1 2 . Swarmer 8 | . . . . 4 4 . Grunt 29 | . 11 . 7 1 7 3 Brawler 1 | . . . . . . 1 Duelist 1 | . . . . . . 1 Sentry 18 | . . . 3 9 5 1 Programmer 1 | . . . . . . 1 Best Kill Streak 5 | . 4 . 2 3 5 5 Combat Bots Only 4 | . 4 . 2 3 4 2 Max Kills in Single Turn 3 | . 1 . 1 3 1 1 Gunslinging . | . . . . . . . Exploded 3 | . . . . 3 1 . Melee . | . . . . . . . Uniques/NPCs Destroyed . | . . . . . . . Combat | -11 -10 -10 -9 -9 -8 -7 -------- Run | Yrd Mat Min Mat Sto Mat Fac Hostile Shots Fired 330 | . 42 . 43 36 80 129 Missed 92 | . 7 . 15 16 24 30 Hits 238 | . 35 . 28 20 56 99 Melee 24 | . . . . . . 24 Projectile 214 | . 35 . 28 20 56 75 Critical Strikes 15 | . . . 1 3 . 11 Actively Blocked 2 | . . . 1 1 . . Part Disruptions 3 | . . . . . . 3 Damage Taken 4399 | . 403 . 378 323 824 2471 Core 765 | . 140 . 70 58 61 436 Absorbed by Shields . | . . . . . . . Redirected to Shielding 310 | . . . 39 69 130 72 Ignored by Resistances 10 | . . . . . . 10 Regen/Repaired (Parts) 172 | . . . . 33 69 70 Core Remaining (%) 75 | 100 . 44 . 68 88 . Volleys Fired 217 | . 41 13 37 33 55 38 Largest 2 | . 2 2 2 2 2 2 Hottest 155 | . 76 120 131 135 135 155 Shots Fired 396 | . 82 14 63 66 110 61 Gun 356 | . 82 1 60 66 110 37 Cannon 24 | . . . . . . 24 Launcher 2 | . . . 2 . . . Special 14 | . . 13 1 . . . Kinetic 42 | . 41 1 . . . . Thermal 247 | . 41 13 61 34 55 43 Explosive 2 | . . . 2 . . . Electromagnetic 105 | . . . . 32 55 18 Robot Hit Streak 15 | . 8 2 7 13 7 15 Robot Miss Streak 4 | . 3 1 4 1 4 4 Penetration Max . | . . . . . . . Secondary Targets 3 | . . . . 1 2 . Max Gunslinging Chain 1 | . . . . 1 1 . Shots Hit Robots 237 | . 55 1 37 43 59 42 Core Hits 103 | . 18 . 17 16 31 21 Critical Kills . | . . . . . . . Critical Parts Destroyed 1 | . 1 . . . . . Critical Strikes 19 | . 3 . 5 2 6 3 Burn 16 | . 2 . 5 1 6 2 Destroy 1 | . 1 . . . . . Corrupt 2 | . . . . 1 . 1 Melee Attacks . | . . . . . . . Impact . | . . . . . . . Slashing . | . . . . . . . Piercing . | . . . . . . . Sneak Attacks . | . . . . . . . Combat Hostiles . | . . . . . . . Follow-up Attacks . | . . . . . . . Damage Inflicted 5431 | . 647 24 632 1262 1560 1306 Guns 4130 | . 647 . 590 974 1396 523 Cannons 435 | . . . . . . 435 Explosions 831 | . . . 42 277 164 348 Melee . | . . . . . . . Ramming 11 | . . . . 11 . . Kinetic 225 | . 225 . . . . . Thermal 3281 | . 422 24 590 388 778 1079 Explosive 319 | . . . 42 277 . . Electromagnetic 1595 | . . . . 586 782 227 Impact . | . . . . . . . Slashing . | . . . . . . . Piercing . | . . . . . . . Highest Corruption 8 | . . . . 5 . 8 Average Corruption 5 | . . . . 5 . 5 Corruption Purged . | . . . . . . . Corruption Blocked . | . . . . . . . Effects 4 | . . . . 2 . 2 Message Errors 1 | . . . . 1 . . Matter Fused 1 | . . . . . . 1 Heat Flow Errors 1 | . . . . 1 . . Data Loss (minor) 1 | . . . . . . 1 Overload Shots . | . . . . . . . Overflow Damage 104 | . . . . 29 43 32 Projectiles . | . . . . . . . Explosions 104 | . . . . 29 43 32 Melee . | . . . . . . . Knockbacks . | . . . . . . . Impact . | . . . . . . . Kinetic . | . . . . . . . Secondary . | . . . . . . . Self-Inflicted Damage 332 | . . . . 56 51 225 Shots 8 | . . . . 1 1 6 Rammed 1 | . . . . 1 . . Targets Rammed 1 | . . . . 1 . . Kicked . | . . . . . . . Crushed . | . . . . . . . Highest Temperature 580 | . 198 76 312 164 498 580 Average Temperature 108 | . 82 38 78 42 111 250 Received Heat Transfer 903 | . 219 . 147 105 288 144 Effects 28 | . . . 1 . 3 24 Shutdowns 11 | . . . . . 3 8 Energy Bleed 1 | . . . 1 . . . Interference 3 | . . . . . . 3 Matter Decay 2 | . . . . . . 2 Short Circuit 4 | . . . . . . 4 Damage (minor) 3 | . . . . . . 3 Damage (major) 2 | . . . . . . 2 Damage (core) 2 | . . . . . . 2 Siege Activations . | . . . . . . . Martial Activations . | . . . . . . . Shielding Activations . | . . . . . . . Robots Disrupted . | . . . . . . . Combat Hostiles . | . . . . . . . Robots Corrupted 2 | . . . . 1 1 . Combat Hostiles 2 | . . . . 1 1 . Parts Fried 11 | . . . . 4 6 1 Impact Corruptions . | . . . . . . . Robots Melted . | . . . . . . . Combat Hostiles . | . . . . . . . Parts Melted 12 | . 4 . 3 . . 5 Heat Transferred 7196 | . 1221 50 1665 777 1667 1816 Parts Sabotaged . | . . . . . . . Parts Stolen . | . . . . . . . Parts Stripped . | . . . . . . . Power Chain Reactions 4 | . . . . . 2 2 Alert | -11 -10 -10 -9 -9 -8 -7 ------- Run | Yrd Mat Min Mat Sto Mat Fac Maximum Alert Level 1 | . 1 . . 1 1 . Low Security (%) 78 | 100 98 100 100 38 51 100 Level 1 21 | . 1 . . 61 48 . Level 2 . | . . . . . . . Level 3 . | . . . . . . . Level 4 . | . . . . . . . Level 5 . | . . . . . . . High Security . | . . . . . . . Max Security . | . . . . . . . Peak Influence 368 | . 205 7 124 368 322 137 Initial 153 | . . 7 . 46 153 137 Average 102 | . 80 . 34 203 208 31 Influence Increases 2650 | . 360 4 430 937 603 316 Destroy 0b10 Robot/C 1380 | . 220 . 240 460 320 140 Destroy 0b10 Robot/NC 75 | . . . 10 20 25 20 Destroy Leader 390 | . 60 . 82 154 74 20 Allied During Kill 177 | . . . 4 173 . . Successful Hack 69 | . 5 . 14 27 . 23 Disable Machine 375 | . 15 . 60 90 105 105 Destroy Structure 79 | . . 4 20 13 34 8 Partial Spotted 30 | . 15 . . . 15 . Lose Combat Pursuer 75 | . 45 . . . 30 . Influence Decreases 2649 | . 341 23 318 685 663 619 Entered New Map 456 | . . 12 . 66 211 167 Time Decay 1938 | . 341 11 318 474 452 342 Lost Part 110 | . . . . . . 110 Lost Ally 120 | . . . . 120 . . Purge Threat 25 | . . . . 25 . . Squads Dispatched 20 | . 5 . 3 2 4 6 Investigation 8 | . 1 . 2 1 2 2 Extermination 2 | . . . . . . 2 Reinforcement 8 | . 4 . 1 1 2 . Assault 1 | . . . . . . 1 Garrison 1 | . . . . . . 1 Intercept . | . . . . . . . Searches Triggered . | . . . . . . . Construction Impeded . | . . . . . . . Haulers Reinforced . | . . . . . . . Active Scanning Responses . | . . . . . . . Cargo Convoy Interrupts . | . . . . . . . Stealth | -11 -10 -10 -9 -9 -8 -7 --------- Run | Yrd Mat Min Mat Sto Mat Fac Distress Signals 8 | . 3 . 1 2 2 . Communications Jammed . | . . . . . . . Distress Signals . | . . . . . . . Times Spotted 103 | . 22 . 18 25 26 12 Peak Tracking Total 6 | . 6 . 3 3 4 4 Tactical Retreats 5 | . 3 . . . 2 . Traps | -11 -10 -10 -9 -9 -8 -7 ------- Run | Yrd Mat Min Mat Sto Mat Fac Traps Triggered 4 | . 1 . . . 1 2 Indirectly . | . . . . . . . Trap Hack Attempts . | . . . . . . . Triggered . | . . . . . . . Disarmed . | . . . . . . . Reprogrammed . | . . . . . . . Reused . | . . . . . . . Traps Extracted . | . . . . . . . Installed . | . . . . . . . Triggered . | . . . . . . . Most Traps Carried 1 | . . 1 1 . . . Machines | -11 -10 -10 -9 -9 -8 -7 ---------- Run | Yrd Mat Min Mat Sto Mat Fac Machines Disabled 26 | . 2 . 4 6 7 7 Max in Single Turn 4 | . 1 . 1 2 2 4 Machines Repaired . | . . . . . . . Machines Dismantled . | . . . . . . . Machines Sabotaged . | . . . . . . . Overloaded Fab Kills . | . . . . . . . Hacking | -11 -10 -10 -9 -9 -8 -7 --------- Run | Yrd Mat Min Mat Sto Mat Fac Machines Accessed 21 | . 1 . 2 10 4 4 Terminals 15 | . 1 . . 9 3 2 Fabricators . | . . . . . . . Repair Stations 3 | . . . . 1 1 1 Recycling Units . | . . . . . . . Scanalyzers 3 | . . . 2 . . 1 Garrison Access . | . . . . . . . Total Hacks 49 | . 3 . 7 18 12 9 Successful 29 | . 1 . 5 11 6 6 Failed 20 | . 2 . 2 7 6 3 Catastrophic 2 | . . . . 1 . 1 Database Lockouts . | . . . . . . . Manual 9 | . . . . 5 2 2 Terminals 25 | . 3 . . 16 4 2 Fabricators . | . . . . . . . Repair Stations 15 | . . . . 2 8 5 Recycling Units . | . . . . . . . Scanalyzers 9 | . . . 7 . . 2 Garrison Access . | . . . . . . . Terminal Hacks 13 | . 1 . . 9 2 1 Prototype ID Bank 4 | . . . . 3 1 . Open Door 2 | . . . . 2 . . Unreport Threat 1 | . . . . 1 . . Locate Traps 1 | . . . . . . 1 Dispatch Records 1 | . . . . 1 . . Maintenance Status 1 | . . . . 1 . . Recall Investigation 1 | . . . . . 1 . Zone Layout 2 | . 1 . . 1 . . Fabricator Hacks . | . . . . . . . Repair Station Hacks 10 | . . . . 2 4 4 Scan Component 7 | . . . . 1 3 3 Repair 3 | . . . . 1 1 1 Recycling Unit Hacks . | . . . . . . . Scanalyzer 6 | . . . 5 . . 1 Insert Component 3 | . . . 2 . . 1 Analyze 3 | . . . 3 . . . Garrison Access Hacks . | . . . . . . . Unauthorized Hacks . | . . . . . . . Terminals . | . . . . . . . Fabricators . | . . . . . . . Repair Stations . | . . . . . . . Recycling Units . | . . . . . . . Scanalyzers . | . . . . . . . Garrison Access . | . . . . . . . Data Cores Recovered 1 | . . . . . 1 . Used . | . . . . . . . Hacking Detections 14 | . 1 . 2 5 2 4 Full Trace Events 5 | . . . 2 1 1 1 Feedback Events . | . . . . . . . Feedback Blocked . | . . . . . . . Robot Schematics Acquired . | . . . . . . . Robots Built . | . . . . . . . Authchips . | . . . . . . . Time . | . . . . . . . Total Robot Build Rating . | . . . . . . . Part Schematics Acquired 1 | . . . 1 . . . Parts Built . | . . . . . . . Authchips . | . . . . . . . Time . | . . . . . . . Total Part Build Rating . | . . . . . . . Parts Repaired 3 | . . . . 1 1 1 Time 188 | . . . . 50 38 100 Parts Recycled . | . . . . . . . Recycled Matter . | . . . . . . . Retrieved Matter . | . . . . . . . Retrieved Components . | . . . . . . . Parts Scanalyzed 1 | . . . 1 . . . Part Schematics Acquired 1 | . . . 1 . . . Parts Damaged . | . . . . . . . Bothacking | -11 -10 -10 -9 -9 -8 -7 ------------ Run | Yrd Mat Min Mat Sto Mat Fac Used RIF Installer . | . . . . . . . Robots Hacked . | . . . . . . . Non-combat . | . . . . . . . Combat . | . . . . . . . Robot Hacks Applied . | . . . . . . . Relay Couplers Released . | . . . . . . . Fabnet Peak Effective % . | . . . . . . . Robots Rewired . | . . . . . . . Allies Hacked . | . . . . . . . Hacks Repelled . | . . . . . . . Allies | -11 -10 -10 -9 -9 -8 -7 -------- Run | Yrd Mat Min Mat Sto Mat Fac Total Allies 11 | . . 1 . 10 . . Largest Group 10 | . . 1 1 10 . . Highest-Rated Group 88 | . . 31 31 88 . . Highest-Rated Ally 31 | . . 31 31 16 . . Total Orders 1 | . . . . 1 . . ROAM 1 | . . . . 1 . . Ally Attacks 82 | . . . 19 63 . . Total Damage 931 | . . . 319 612 . . Kills 12 | . . . 3 9 . . Allies Corrupted . | . . . . . . . Allies Melted . | . . . . . . . Intel | -11 -10 -10 -9 -9 -8 -7 ------- Run | Yrd Mat Min Mat Sto Mat Fac Active Infowar (turns) . | . . . . . . . Robot Analysis Total . | . . . . . . . Derelict Logs Recovered . | . . . . . . . Drone Launches . | . . . . . . . Drone Recoveries . | . . . . . . . Exploration | -11 -10 -10 -9 -9 -8 -7 ------------- Run | Yrd Mat Min Mat Sto Mat Fac Turns Passed 6231 | 126 911 554 957 1266 1126 1291 Spaces Moved 2687 | 77 308 294 437 607 510 454 Core 10 | 10 . . . . . . Treads 2677 | 67 308 294 437 607 510 454 Legs . | . . . . . . . Wheels . | . . . . . . . Hover . | . . . . . . . Flight . | . . . . . . . Fastest Speed 50 | 50 160 160 160 160 160 160 Average Speed 159 | 145 160 160 160 160 160 160 Slowest Speed 320 | 160 160 160 160 160 240 320 Overloaded Moves . | . . . . . . . Propulsion Burnouts . | . . . . . . . Robots Hopped . | . . . . . . . Potential Cave-ins 3 | . . 3 . . . . Cave-ins Triggered . | . . . . . . . Exploration Rate (%) 41 | 4 46 58 36 82 51 13 Regions Visited 6 Branch Regions 2 Pre-discovered Areas . | . . . . . . . Known Exits Taken . | . . . . . . . Unknown Exits Taken 6 | 1 1 1 1 1 1 . Scrap Searched 1 | . . 1 . . . . Spaces Dug 7 | . . 7 . . . . Terrain Destroyed 85 | . . 8 20 10 35 12 Melee . | . . . . . . . Projectile 8 | . . 8 . . . . AOE 77 | . . . 20 10 35 12 Terrain Rammed . | . . . . . . . Walls Destroyed . | . . . . . . . Machines Disabled . | . . . . . . . Actions | -11 -10 -10 -9 -9 -8 -7 --------- Run | Yrd Mat Min Mat Sto Mat Fac Total 4225 | 88 654 341 640 838 706 958 Wait 1115 | . 281 19 116 165 109 425 Move 2681 | 76 307 293 436 606 509 454 Hop . | . . . . . . . Pick Up 58 | 4 13 4 14 8 6 9 Fast Attach 22 | 6 3 2 3 3 2 3 Attach 25 | 1 1 2 6 1 3 11 Detach 13 | 1 3 2 3 . 2 2 Swap 31 | . 1 . 5 6 13 6 Drop 60 | . 4 6 20 13 7 10 Fire 217 | . 41 13 37 33 55 38 Melee . | . . . . . . . Ram . | . . . . . . . Kick . | . . . . . . . Crush 1 | . . . . 1 . . Escape Stasis . | . . . . . . . Rewire 2 | . . . . 2 . . Trap . | . . . . . . . Miscellaneous . | . . . . . . . Route ------- -11/Scrapyard -10/Materials -10/Mines -9/Materials -9/Storage -8/Materials (discovered 2 exits: *Fac x2) -7/Factory History --------- Turn | Location | Event 7 | -11/Scrapyard | Discovered new exit (range 15) 127 | -11/Scrapyard | Entered Materials 314 | -10/Materials | Build established: Mutant 841 | -10/Materials | Discovered new exit (range 9) 848 | -10/Materials | Core integrity fell below 50% 1038 | -10/Materials | Entered Mines 1045 | -10/Mines | Received a Rocket Launcher from a helpful Derelict 1389 | -10/Mines | Found a hidden stash of uninstalled traps 1395 | -10/Mines | Assembled infested the area 1400 | -10/Mines | Assisted by a Guerilla fighting off Assembled 1574 | -10/Mines | Discovered new exit (range 5) 1575 | -10/Mines | Met a Derelict testing a Signal Generator 1586 | -10/Mines | Found Signal Generator 1592 | -10/Mines | Entered Materials 1592 | -9/Materials | Accompanied by 1 ally 1592 | -9/Materials | Evolved 2 slots: Utility x2 2202 | -9/Materials | Build established: Scavenger-Mutant 2456 | -9/Materials | Discovered new exit (range 4) 2549 | -9/Materials | Entered Storage 2577 | -9/Storage | Assisted by bots powering up and referring to "LRC-V3" 2896 | -9/Storage | Build established: Commander-Mutant 3081 | -9/Storage | Lost 5 allies 3356 | -9/Storage | Repaired Beamcaster 3361 | -9/Storage | Discovered new exit (range 5) 3469 | -9/Storage | Build established: Mutant 3815 | -9/Storage | Entered Materials 3815 | -8/Materials | Evolved 2 slots: Power x1, Propulsion x1 4117 | -8/Materials | Build established: Scavenger-Mutant 4298 | -8/Materials | Repaired Imp. Weapon Shielding? 4425 | -8/Materials | Discovered new exit (range 5) 4892 | -8/Materials | Discovered new exit (range 11) 4941 | -8/Materials | Entered Factory 4941 | -7/Factory | Evolved 2 slots: Propulsion x1, Utility x1 5283 | -7/Factory | Build established: Mutant 5627 | -7/Factory | Repaired Broken Imp. Lightning Gun 6166 | -7/Factory | Garrison activated, responded to threat 6190 | -7/Factory | Core integrity fell below 50% 6232 | -7/Factory | Self-destructed Last Messages --------------- 06220_ K-01 Serf collects debris. 06221_ U-05 Engineer lays Concrete. 06223_ P-60 Hacker IFF system glitched. 06223_ U-05 Engineer lays Concrete. 06223_ P-70 Sage resets P-60 Hacker, system corruption cleaned. 06224_ U-05 Engineer lays Concrete. 06224_ K-01 Serf collects debris. 06225_ Imp. Medium Armor Plating destroyed. 06225_ U-05 Engineer lays Concrete. 06228_ P-70 Sage resets P-60 Hacker, system corruption cleaned. 06228_ K-01 Serf collects debris. 06228_ U-05 Engineer lays Concrete. 06229_ U-05 Engineer builds a Wall. 06229_ U-05 Engineer lays Concrete. 06229_ U-05 Engineer builds a Wall. 06229_ Imp. Lightning Gun destroyed. 06230_ U-05 Engineer builds a Wall. 06230_ U-05 Engineer lays Concrete. 06232_ K-01 Serf collects debris. 06232_ U-05 Engineer lays Concrete. Map ----- +----------------------------------------------------+ | ?????????????????????????????????????????????????? | | ?????????????????????????????????????????????????? | | ?????????????????????????????????????????????????? | | ?????????????????????????????????????????????????? | | ?????????????????????????????????????????????????? | | ?????????????????????????????????????????????????? | | ?????????????????????????????????????????????????? | | ?????????????????????????????????????????????????? | | ?????????????????????????????????????????????????? | | ?????????????????????????????????????????????????? | | ?????????????????????????????????????????????????? | | ?????????????????????????????????????????????????? | | ?????????????????????????????????????????????????? | | ?????????????????????????????????????????????????? | | ?????????????????????????????????????????????????? | | ?????????????????????????????????????????????????? | | ?????????????????????????????????????????????????? | | ?????????????????????????????????????????????????? | | ?????????????????????????????????????????????????? | | ?????????????????????????????????????????????????? | | ?????????????????????????????????????????????????? | | ?????????????????????????????????????????????????? | | ???????????????????######??###############???????? | | ???????????????????# #=|### ??????? | | ??????????????# #########;;# ??????? | | ??????????????# u%uu@u# ?????? | | ??????????????# *% pu # ?????? | | ????????? w/ = up# ?????? | | ???????? # !%%k%* + ?????? | | ????????] ???# |"%" # ?????? | | ??????????????##### """ # ??????? | | ??????????????????# ################??????? | | ??????????????????# """ #??????????????? | | ??????????????????# """ #??????????????? | | ??????????????????# m """ #??????????????? | | ??????????????????# #??????????????? | | ??????????????????# #??????????????? | | ??????????????????# ######### #??????????????? | | ??????????????????# ????????# ############???? | | ?????????????????? ????????# ?? | | ????????????????????????????# #? | | ????????????????????????????# #? | | ????????????????????????????# """ "" #? | | ????????????????????????????#% "" " #? | | ????????????????????????????# %* """ #? | | ??????????????? ###+##### "" #? | | ??????????????? "" #? | | ??????????????? "" #? | | ??????????????? "" #? | | ??????????????? #? | +----------------------------------------------------+ Best States ------------- Heat Dissipation 48 Coolant Potential 50 Energy Generation 21 Energy Capacity 440 Matter Stores 300 Matter Capacity 300 Sight Range 16 Terrain Scan Density 10 Armor Coverage 450 Resistance: KI 30 Weapon Shielding 66 Evasion (%) 40 Targeting Accuracy 8 Recoil Reduction 4 Defensive Hacking 10 Item Schematics ----------------- Imp. Weapon Shielding | -9/Materials | Scanalyzed Robot Schematics ------------------ None Fabricated ------------ Nothing Repaired ---------- Beamcaster | 63% | -9/Storage Imp. Weapon Shielding | 31% | -8/Materials Imp. Lightning Gun | 22% | -7/Factory | Broken Alien Tech Used ----------------- None Achievements -------------- None Challenges ------------ None Game ------ Seed ArcsightDirtyMonowheel Manual? 0 Play Time 01:01:16 Cumulative 18.1 hours Start 2025.10.19 @ 21:13:17 End 2025.10.20 @ 00:26:47 Sessions 1 Manual Loads 0 Difficulty Rogue Special Mode None Game No. 36 Rogue 36 Adventurer 0 Explorer 0 Win Type - Total 0 Types 0/0/0/0/0/0/0/0/0/0 Lore% 5 Gallery% 21 Achievement% 20 Wizard Run 0 Options --------- Layout 0 ASCII 0 Keyboard 1 Movement Numpad Keybinds 0 Fullscreen 2 Font 20/Terminus Map View 96x60 Zoom Use 0% Tactical HUD 1 Map Filters NONE Filters NONE Steam 1 RUN: b4178695-36a0-4811-99c6-eaa34b1642b4